fUST/lending_fUST_20250905
["ID","MTS","AMOUNT","RATE_DAILY","PERIOD"]
[383642710,1757059849709,-592.662146,0.00013698,2]
[383642711,1757059849719,-592.662146,0.00013698,2]
[383642712,1757059849728,-592.662146,0.00013698,2]
[383642713,1757059849738,-555.91,0.00013698,2]
[383642714,1757059849747,-592.662146,0.00013698,2]
[383642715,1757059849756,-480.0,0.00013698,2]
[383642716,1757059849765,-592.662146,0.00013698,2]
[383642717,1757059849775,-592.662146,0.00013698,2]
[383642718,1757059849784,-592.662146,0.00013698,2]
[383642719,1757059849794,-480.0,0.00013698,2]
[383642720,1757059849803,-592.662146,0.00013698,2]
[383642721,1757059849812,-592.662146,0.00013698,2]
[383642722,1757059849821,-151.0,0.00013698,2]
[383642723,1757059849831,-151.0,0.00013698,2]
[383642724,1757059849840,-592.662146,0.00013698,2]
[383642725,1757059849850,-151.0,0.00013698,2]
[383642726,1757059849859,-480.0,0.00013698,2]
[383642727,1757059849869,-592.662146,0.00013698,2]
[383642728,1757059849878,-151.0,0.00013698,2]
[383642729,1757059849888,-592.662146,0.00013698,2]
[383642730,1757059849897,-151.0,0.00013698,2]
[383642731,1757059849907,-592.662156,0.00013698,2]
[383642732,1757059849917,-151.0,0.00013698,2]
[383642733,1757059849929,-480.0,0.00013698,2]
[383642734,1757059849940,-480.0,0.00013698,2]
[383642735,1757059849949,-289.802729,0.00013698,2]
[383642736,1757059849959,-480.0,0.00013698,2]
[383642737,1757059849968,-480.0,0.00013698,2]
[383642738,1757059849978,-480.0,0.00013698,2]
[383642739,1757059849987,-480.0,0.00013698,2]
[383642740,1757059849997,-151.0,0.00013698,2]
[383642741,1757059850008,-151.0,0.00013698,2]
[383642742,1757059850018,-151.0,0.00013698,2]
[383642743,1757059850027,-151.0,0.00013698,2]
[383642744,1757059850036,-151.0,0.00013698,2]
[383642745,1757059850045,-151.0,0.00013698,2]
[383642746,1757059850054,-151.0,0.00013698,2]
[383642747,1757059850064,-151.0,0.00013698,2]
[383642748,1757059850073,-151.0,0.00013698,2]
[383642749,1757059850082,-151.0,0.00013698,2]
[383642750,1757059850091,-151.0,0.00013698,2]
[383642751,1757059850101,-151.0,0.00013698,2]
[383642752,1757059850110,-151.0,0.00013698,2]
[383642753,1757059850119,-151.0,0.00013698,2]
[383642754,1757059850129,-151.0,0.00013698,2]
[383642755,1757059850139,-151.0,0.00013698,2]
[383642756,1757059850148,-151.0,0.00013698,2]
[383642757,1757059850157,-151.0,0.00013698,2]
[383642758,1757059850166,-151.0,0.00013698,2]
[383642759,1757059850176,-151.0,0.00013698,2]
[383642760,1757059850186,-301.504798,0.00013698,2]
[383642761,1757059850195,-151.0,0.00013698,2]
[383642762,1757059850205,-480.0,0.00013698,2]
[383642763,1757059850214,-151.0,0.00013698,2]
[383642764,1757059850224,-151.0,0.00013698,2]
[383642765,1757059850233,-151.0,0.00013698,2]
[383642766,1757059850243,-151.0,0.00013698,2]
[383642767,1757059850252,-151.0,0.00013698,2]
[383642768,1757059850261,-151.0,0.00013698,2]
[383642769,1757059850271,-151.0,0.00013698,2]
[383642770,1757059850280,-151.0,0.00013698,2]
[383642771,1757059850290,-151.0,0.00013698,2]
[383642772,1757059850299,-151.0,0.00013698,2]
[383642773,1757059850308,-151.0,0.00013698,2]
[383642774,1757059850318,-151.0,0.00013698,2]
[383642775,1757059850328,-230.021154,0.00013698,2]
[383642776,1757059850337,-1417.34,0.00013698,2]
[383642777,1757059850347,-151.0,0.00013698,2]
[383642778,1757059850356,-151.0,0.00013698,2]
[383642779,1757059850366,-165.860139,0.00013698,2]
[383642780,1757059850376,-727.64,0.00013698,2]
[383642781,1757059850385,-480.0,0.00013698,2]
[383642782,1757059850395,-2000.39,0.00013698,2]
[383642783,1757059850404,-480.0,0.00013698,2]
[383642784,1757059850415,-480.0,0.00013698,2]
[383642785,1757059850424,-480.0,0.00013698,2]
[383642786,1757059850434,-480.0,0.00013698,2]
[383642787,1757059850443,-796.08,0.00013698,2]
[383642788,1757059850452,-151.0,0.00013698,2]
[383642789,1757059850462,-151.0,0.00013698,2]
[383642790,1757059850471,-151.0,0.00013698,2]
[383642791,1757059850480,-481.28101081,0.00013698,2]
[383642792,1757059850489,-480.0,0.00013698,2]
[383642793,1757059850499,-480.0,0.00013698,2]
[383642794,1757059850508,-480.0,0.00013698,2]
[383642795,1757059850517,-482.1908618,0.00013698,2]
[383642796,1757059850527,-480.0,0.00013698,2]
[383642797,1757059850536,-481.3085743,0.00013698,2]
[383642798,1757059850545,-151.0,0.00013698,2]
[383642799,1757059850554,-151.0,0.00013698,2]
[383642800,1757059850563,-480.0,0.00013698,2]
[383642801,1757059850573,-480.0,0.00013698,2]
[383642802,1757059850582,-674.55,0.00013698,2]
[383642803,1757059850591,-480.0,0.00013698,2]
[383642804,1757059850600,-480.0,0.00013698,2]
[383642805,1757059850610,-195.63280249,0.00013698,2]
[383642806,1757059850619,-480.0,0.00013698,2]
[383642807,1757059850628,-480.0,0.00013698,2]
[383642808,1757059850637,-480.0,0.00013698,2]
[383642809,1757059850647,-480.0,0.00013698,2]
[383642810,1757059850657,-151.0,0.00013698,2]
[383642811,1757059850666,-151.0,0.00013698,2]
[383642812,1757059850676,-480.0,0.00013698,2]
[383642813,1757059850686,-153.276402,0.00013698,2]
[383642814,1757059850695,-151.0,0.00013698,2]
[383642815,1757059850704,-177.771614,0.00013698,2]
[383642816,1757059850714,-480.0,0.00013698,2]
[383642817,1757059850724,-482.28867914,0.00013698,2]
[383642818,1757059850733,-480.0,0.00013698,2]
[383642819,1757059850742,-480.0,0.00013698,2]
[383642820,1757059850752,-151.0,0.00013698,2]
[383642821,1757059850761,-151.0,0.00013698,2]
[383642822,1757059850771,-151.0,0.00013698,2]
[383642823,1757059850780,-151.0,0.00013698,2]
[383642824,1757059850789,-151.0,0.00013698,2]
[383642825,1757059850800,-151.0,0.00013698,2]
[383642826,1757059850809,-4850.47,0.00013698,2]
[383642827,1757059850819,-480.0,0.00013698,2]
[383642828,1757059850828,-151.0,0.00013698,2]
[383642829,1757059850838,-151.0,0.00013698,2]
[383642830,1757059850847,-151.0,0.00013698,2]
[383642831,1757059850859,-480.0,0.00013698,2]
[383642832,1757059850868,-480.0,0.00013698,2]
[383642833,1757059850878,-151.0,0.00013698,2]
[383642834,1757059850888,-151.0,0.00013698,2]
[383642835,1757059850898,-151.0,0.00013698,2]
[383642836,1757059850909,-151.0,0.00013698,2]
[383642837,1757059850924,-206.39783444,0.00013698,2]
[383642838,1757059851020,-260.41225067,0.00013698,2]
[383642839,1757059851029,-151.0,0.00013698,2]
[383642840,1757059851039,-151.0,0.00013698,2]
[383642841,1757059851048,-186.28748,0.00013698,2]
[383642842,1757059851058,-480.0,0.00013698,2]
[383642843,1757059851067,-481.99902916,0.00013698,2]
[383642844,1757059851076,-480.0,0.00013698,2]
[383642845,1757059851086,-480.0,0.00013698,2]
[383642846,1757059851095,-480.0,0.00013698,2]
[383642847,1757059851104,-1838.00124017,0.00013698,2]
[383642848,1757059851122,-421.85875983,0.00013698,2]
[383642849,1757059851131,-480.0,0.00013698,2]
[383642850,1757059851140,-480.0,0.00013698,2]
[383642851,1757059851152,-151.0,0.00013698,2]
[383642852,1757059851162,-157.870771,0.00013698,2]
[383642853,1757059851172,-480.0,0.00013698,2]
[383642854,1757059851181,-480.0,0.00013698,2]
[383642855,1757059851190,-151.829163,0.00013698,2]
[383642856,1757059851199,-504.79,0.00013698,2]
[383642857,1757059851208,-480.0,0.00013698,2]
[383642858,1757059851217,-480.0,0.00013698,2]
[383642859,1757059851227,-480.0,0.00013698,2]
[383642860,1757059851236,-480.0,0.00013698,2]
[383642861,1757059851245,-544.17,0.00013698,2]
[383642862,1757059851254,-828.26,0.00013698,2]
[383642863,1757059851264,-480.0,0.00013698,2]
[383642864,1757059851273,-480.0,0.00013698,2]
[383642865,1757059851283,-1042.47,0.00013698,2]
[383642866,1757059851292,-480.0,0.00013698,2]
[383642867,1757059851302,-480.0,0.00013698,2]
[383642868,1757059851311,-634.52,0.00013698,2]
[383642869,1757059851320,-955.89,0.00013698,2]
[383642870,1757059851329,-480.0,0.00013698,2]
[383642871,1757059851339,-480.0,0.00013698,2]
[383642872,1757059851348,-1107.2,0.00013698,2]
[383642873,1757059851357,-480.0,0.00013698,2]
[383642874,1757059851367,-480.0,0.00013698,2]
[383642875,1757059851376,-606.56,0.00013698,2]
[383642876,1757059851386,-480.0,0.00013698,2]
[383642877,1757059851395,-480.0,0.00013698,2]
[383642878,1757059851404,-480.0,0.00013698,2]
[383642879,1757059851414,-151.0,0.00013698,2]
[383642880,1757059851424,-154.937907,0.00013698,2]
[383642881,1757059851433,-480.0,0.00013698,2]
[383642882,1757059851442,-480.0,0.00013698,2]
[383642883,1757059851451,-1640.33,0.00013698,2]
[383642884,1757059851461,-151.0,0.00013698,2]
[383642885,1757059851470,-480.0,0.00013698,2]
[383642886,1757059851479,-151.0,0.00013698,2]
[383642887,1757059851488,-480.0,0.00013698,2]
[383642888,1757059851497,-480.0,0.00013698,2]
[383642889,1757059851506,-480.0,0.00013698,2]
[383642890,1757059851515,-480.0,0.00013698,2]
[383642891,1757059851525,-391.25247179,0.00013698,2]
[383642892,1757059972531,170.28220869,0.00013598,2]
[383642893,1757060021870,35874.598162,0.00012863,2]
[383642894,1757060037556,581.01585484,0.00013457,2]
[383642895,1757060207889,170.28220869,0.00013598,2]
[383642896,1757060433202,170.28220869,0.00013598,2]
[383642898,1757060590076,781.63025538,0.00013548,2]
[383642899,1757060653453,170.28220869,0.00013598,2]
[383642902,1757060740909,178.89294769,0.00013013,2]
[383642908,1757060977333,19099.0615766,0.00012698,2]
[383642909,1757060988945,208.67962364,0.00013598,2]
[383643088,1757061043111,-383.112,0.00013685,2]
[383643095,1757061043167,-426.98444179,0.00013685,2]
[383643097,1757061043178,-250.0,0.0001369,2]
[383643100,1757061043188,-250.0,0.0001369,2]
[383643102,1757061043198,-250.0,0.0001369,2]
[383643104,1757061043207,-29.47148971,0.0001369,2]
[383643390,1757061046084,-1223.9158995,0.0001369,2]
[383643392,1757061046094,-500.0,0.00013697,2]
[383643394,1757061046104,-253.5934727,0.00013697,2]
[383643396,1757061046113,-180.17824572,0.00013697,2]
[383643398,1757061046123,-64.8991516,0.00013697,2]
[383643412,1757061046248,-435.1008484,0.00013697,2]
[383643414,1757061046257,-256.66618084,0.00013697,2]
[383643416,1757061046266,-500.0,0.00013697,2]
[383643418,1757061046275,-500.0,0.00013697,2]
[383643420,1757061046284,-175.55999961,0.00013697,2]
[383643422,1757061046294,-500.0,0.00013697,2]
[383643424,1757061046303,-500.0,0.00013698,2]
[383643426,1757061046312,-500.0,0.00013698,2]
[383643428,1757061046321,-500.0,0.00013698,2]
[383643430,1757061046331,-500.0,0.00013698,2]
[383643432,1757061046342,-500.0,0.00013698,2]
[383643434,1757061046351,-500.0,0.00013698,2]
[383643436,1757061046360,-500.0,0.00013698,2]
[383643438,1757061046369,-500.0,0.00013698,2]
[383643440,1757061046382,-500.0,0.00013698,2]
[383643442,1757061046391,-500.0,0.00013698,2]
[383643444,1757061046401,-500.0,0.00013698,2]
[383643446,1757061046410,-500.0,0.00013698,2]
[383643448,1757061046420,-1978.9461404,0.00013698,2]
[383643450,1757061046429,-9136.8951491,0.00013698,2]
[383643452,1757061046439,-480.0,0.00013698,2]
[383643454,1757061046447,-183.8992078,0.00013698,2]
[383643456,1757061046459,-480.0,0.00013698,2]
[383643458,1757061046468,-480.0,0.00013698,2]
[383643459,1757061046477,-480.0,0.00013698,2]
[383643461,1757061046486,-535.19,0.00013698,2]
[383643464,1757061046496,-480.0,0.00013698,2]
[383643466,1757061046505,-580.85295363,0.00013698,2]
[383643468,1757061046515,-480.0,0.00013698,2]
[383643469,1757061046524,-480.0,0.00013698,2]
[383643472,1757061046534,-480.0,0.00013698,2]
[383643473,1757061046543,-558.24,0.00013698,2]
[383643476,1757061046552,-480.0,0.00013698,2]
[383643478,1757061046562,-500.12,0.00013698,2]
[383643480,1757061046571,-483.36841889,0.00013698,2]
[383643482,1757061046580,-282.23290133,0.00013698,2]
[383645928,1757061225604,761.49,0.00012329,2]
[383645929,1757061259148,208.67962364,0.00013598,2]
[383645941,1757061405827,258.64889508,0.00013598,2]
[383645942,1757061453293,666.0,0.00012879,2]
[383645943,1757061519447,208.67962364,0.00013598,2]
[383645945,1757061730179,172.43259672,0.00013598,2]
[383645947,1757061861546,250.65364145,0.00013553,2]
[383645948,1757061942083,650.36384744,0.00013287,2]
[383645949,1757062062453,150.87852215,0.00013598,2]
[383645977,1757062232243,-150.87852213,0.00013689,2]
[383645978,1757062232252,-300.0,0.00013696,2]
[383645979,1757062232261,-300.0,0.00013696,2]
[383645980,1757062232271,-1200.0,0.00013696,2]
[383645981,1757062232281,-500.0,0.00013697,2]
[383645982,1757062232290,-500.0,0.00013697,2]
[383645983,1757062232299,-500.0,0.00013697,2]
[383645984,1757062232312,-500.0,0.00013697,2]
[383645985,1757062232321,-194.31264666,0.00013697,2]
[383645986,1757062232330,-500.0,0.00013697,2]
[383645987,1757062232339,-500.0,0.00013697,2]
[383645988,1757062232348,-500.0,0.00013697,2]
[383645990,1757062232357,-500.0,0.00013697,2]
[383645992,1757062232367,-500.0,0.00013697,2]
[383645994,1757062232376,-500.0,0.00013697,2]
[383645996,1757062232385,-500.0,0.00013697,2]
[383645998,1757062232395,-2493.6161014,0.00013697,2]
[383646000,1757062232404,-4057.8290868,0.00013698,2]
[383646002,1757062232414,-604.38216386,0.00013698,2]
[383646382,1757062238091,-483.56927191,0.00013698,2]
[383646384,1757062238103,-752.73625706,0.00013698,2]
[383646389,1757062238144,-538.6149541,0.00013698,2]
[383646392,1757062238156,-12489.04813037,0.00013698,2]
[383646394,1757062238166,-480.90261047,0.00013698,2]
[383646396,1757062238175,-3054.16541359,0.00013698,2]
[383646398,1757062238185,-480.0,0.00013698,2]
[383646400,1757062238195,-482.03132682,0.00013698,2]
[383646401,1757062238205,-480.0,0.00013698,2]
[383646404,1757062238221,-480.77244762,0.00013698,2]
[383646407,1757062238235,-157.0,0.00013698,2]
[383646409,1757062238245,-480.88189864,0.00013698,2]
[383646411,1757062238255,-45.04741354,0.00013698,2]
[383646439,1757062240181,-480.0,0.00013698,2]
[383646440,1757062240191,-151.634328,0.00013698,2]
[383646441,1757062240201,-480.0,0.00013698,2]
[383646442,1757062240211,-480.0,0.00013698,2]
[383646443,1757062240223,-480.0,0.00013698,2]
[383646444,1757062240233,-151.0,0.00013698,2]
[383646445,1757062240243,-151.0,0.00013698,2]
[383646446,1757062240254,-151.0,0.00013698,2]
[383646447,1757062240264,-151.0,0.00013698,2]
[383646448,1757062240274,-152.078291,0.00013698,2]
[383646449,1757062240283,-480.0,0.00013698,2]
[383646450,1757062240293,-480.0,0.00013698,2]
[383646451,1757062240302,-151.0,0.00013698,2]
[383646452,1757062240313,-151.0,0.00013698,2]
[383646453,1757062240323,-151.0,0.00013698,2]
[383646454,1757062240332,-151.0,0.00013698,2]
[383646455,1757062240341,-151.0,0.00013698,2]
[383646456,1757062240352,-151.0,0.00013698,2]
[383646457,1757062240361,-151.0,0.00013698,2]
[383646459,1757062240371,-151.0,0.00013698,2]
[383646461,1757062240382,-151.0,0.00013698,2]
[383646462,1757062240393,-480.0,0.00013698,2]
[383646463,1757062240403,-177.524178,0.00013698,2]
[383646464,1757062240413,-151.0,0.00013698,2]
[383646465,1757062240423,-151.0,0.00013698,2]
[383646466,1757062240433,-151.0,0.00013698,2]
[383646467,1757062240442,-220.681778,0.00013698,2]
[383646468,1757062240452,-151.0,0.00013698,2]
[383646469,1757062240462,-151.0,0.00013698,2]
[383646470,1757062240472,-152.594325,0.00013698,2]
[383646471,1757062240482,-480.0,0.00013698,2]
[383646472,1757062240491,-480.0,0.00013698,2]
[383646473,1757062240501,-151.0,0.00013698,2]
[383646474,1757062240510,-480.0,0.00013698,2]
[383646475,1757062240519,-153.157774,0.00013698,2]
[383646476,1757062240529,-480.0,0.00013698,2]
[383646477,1757062240544,-481.3085743,0.00013698,2]
[383646478,1757062240559,-480.0,0.00013698,2]
[383646479,1757062240575,-480.0,0.00013698,2]
[383646480,1757062240590,-480.0,0.00013698,2]
[383646481,1757062240602,-480.0,0.00013698,2]
[383646482,1757062240614,-480.0,0.00013698,2]
[383646483,1757062240628,-289.802729,0.00013698,2]
[383646484,1757062240641,-480.0,0.00013698,2]
[383646485,1757062240654,-151.0,0.00013698,2]
[383646486,1757062240668,-151.0,0.00013698,2]
[383646487,1757062240681,-151.0,0.00013698,2]
[383646488,1757062240694,-151.0,0.00013698,2]
[383646489,1757062240708,-480.0,0.00013698,2]
[383646490,1757062240721,-151.0,0.00013698,2]
[383646491,1757062240732,-151.0,0.00013698,2]
[383646492,1757062240746,-151.0,0.00013698,2]
[383646493,1757062240759,-151.0,0.00013698,2]
[383646494,1757062240771,-151.0,0.00013698,2]
[383646495,1757062240785,-480.0,0.00013698,2]
[383646496,1757062240798,-151.0,0.00013698,2]
[383646497,1757062240811,-481.28101081,0.00013698,2]
[383646498,1757062240822,-480.0,0.00013698,2]
[383646499,1757062240833,-480.0,0.00013698,2]
[383646500,1757062240845,-480.0,0.00013698,2]
[383646501,1757062240856,-480.0,0.00013698,2]
[383646502,1757062240868,-480.0,0.00013698,2]
[383646503,1757062240881,-480.0,0.00013698,2]
[383646504,1757062240895,-482.28867914,0.00013698,2]
[383646505,1757062240907,-151.0,0.00013698,2]
[383646506,1757062240921,-151.0,0.00013698,2]
[383646507,1757062240934,-480.0,0.00013698,2]
[383646508,1757062240948,-151.0,0.00013698,2]
[383646509,1757062240962,-151.0,0.00013698,2]
[383646510,1757062240972,-153.276402,0.00013698,2]
[383646511,1757062240982,-480.0,0.00013698,2]
[383646512,1757062240993,-480.0,0.00013698,2]
[383646513,1757062241004,-480.0,0.00013698,2]
[383646514,1757062241018,-480.0,0.00013698,2]
[383646515,1757062241030,-480.0,0.00013698,2]
[383646516,1757062241042,-480.0,0.00013698,2]
[383646517,1757062241053,-460.63180389,0.00013698,2]
[383646518,1757062241064,-480.0,0.00013698,2]
[383646519,1757062241077,-1003.86148992,0.00013698,2]
[383646520,1757062241090,-480.0,0.00013698,2]
[383646521,1757062241100,-480.0,0.00013698,2]
[383646522,1757062241111,-480.0,0.00013698,2]
[383646523,1757062241122,-151.0,0.00013698,2]
[383646524,1757062241132,-151.0,0.00013698,2]
[383646525,1757062241143,-354.76621787,0.00013698,2]
[383646526,1757062241155,-480.0,0.00013698,2]
[383646527,1757062241168,-480.0,0.00013698,2]
[383646528,1757062241180,-174.52537337,0.00013698,2]
[383646529,1757062241191,-480.0,0.00013698,2]
[383646530,1757062241202,-480.0,0.00013698,2]
[383646531,1757062241214,-480.0,0.00013698,2]
[383646532,1757062241225,-480.0,0.00013698,2]
[383646533,1757062241236,-480.0,0.00013698,2]
[383646534,1757062241247,-480.0,0.00013698,2]
[383646535,1757062241258,-480.0,0.00013698,2]
[383646536,1757062241270,-480.0,0.00013698,2]
[383646537,1757062241281,-480.0,0.00013698,2]
[383646538,1757062241293,-151.0,0.00013698,2]
[383646539,1757062241304,-151.0,0.00013698,2]
[383646540,1757062241315,-151.0,0.00013698,2]
[383646541,1757062241326,-222.066546,0.00013698,2]
[383646542,1757062241337,-480.0,0.00013698,2]
[383646543,1757062241348,-480.0,0.00013698,2]
[383646544,1757062241359,-480.0,0.00013698,2]
[383646545,1757062241371,-482.21837615,0.00013698,2]
[383646546,1757062241382,-480.0,0.00013698,2]
[383646547,1757062241394,-543.87,0.00013698,2]
[383646548,1757062241404,-151.0,0.00013698,2]
[383646549,1757062241415,-154.088002,0.00013698,2]
[383646550,1757062241426,-151.0,0.00013698,2]
[383646551,1757062241437,-151.0,0.00013698,2]
[383646552,1757062241449,-151.0,0.00013698,2]
[383646553,1757062241462,-151.0,0.00013698,2]
[383646554,1757062241475,-151.0,0.00013698,2]
[383646555,1757062241489,-151.0,0.00013698,2]
[383646556,1757062241501,-480.0,0.00013698,2]
[383646557,1757062241512,-249.286569,0.00013698,2]
[383646558,1757062241523,-554.74010907,0.00013698,2]
[383646559,1757062241534,-151.0,0.00013698,2]
[383646560,1757062241546,-481.97529195,0.00013698,2]
[383646561,1757062241557,-151.0,0.00013698,2]
[383646562,1757062241568,-151.0,0.00013698,2]
[383646563,1757062241579,-286.31707,0.00013698,2]
[383646564,1757062241591,-480.0,0.00013698,2]
[383646565,1757062241603,-151.0,0.00013698,2]
[383646566,1757062241615,-480.0,0.00013698,2]
[383646567,1757062241626,-151.0,0.00013698,2]
[383646568,1757062241638,-153.261702,0.00013698,2]
[383646569,1757062241649,-151.0,0.00013698,2]
[383646570,1757062241660,-151.0,0.00013698,2]
[383646571,1757062241672,-480.0,0.00013698,2]
[383646572,1757062241683,-480.0,0.00013698,2]
[383646573,1757062241695,-480.0,0.00013698,2]
[383646574,1757062241707,-480.0,0.00013698,2]
[383646575,1757062241718,-480.0,0.00013698,2]
[383646576,1757062241730,-480.0,0.00013698,2]
[383646577,1757062241742,-480.0,0.00013698,2]
[383646578,1757062241754,-480.0,0.00013698,2]
[383646579,1757062241765,-480.0,0.00013698,2]
[383646580,1757062241908,-530.79990399,0.00013698,2]
[383646581,1757062241924,-480.0,0.00013698,2]
[383646582,1757062241935,-480.0,0.00013698,2]
[383646583,1757062241945,-400.0,0.00013698,2]
[383646584,1757062241955,-481.69809481,0.00013698,2]
[383646585,1757062241968,-480.0,0.00013698,2]
[383646586,1757062241978,-480.0,0.00013698,2]
[383646587,1757062241987,-283.29976278,0.00013698,2]
[383646588,1757062241997,-480.0,0.00013698,2]
[383646589,1757062242007,-480.0,0.00013698,2]
[383646590,1757062242017,-151.0,0.00013698,2]
[383646591,1757062242027,-151.0,0.00013698,2]
[383646592,1757062242037,-151.0,0.00013698,2]
[383646593,1757062242046,-151.0,0.00013698,2]
[383646594,1757062242056,-480.0,0.00013698,2]
[383646595,1757062242065,-480.0,0.00013698,2]
[383646596,1757062242075,-480.0,0.00013698,2]
[383646597,1757062242084,-480.0,0.00013698,2]
[383646598,1757062242094,-480.0,0.00013698,2]
[383646599,1757062242103,-480.0,0.00013698,2]
[383646600,1757062242112,-517.3888015,0.00013698,2]
[383646601,1757062242122,-46.57681644,0.00013698,2]
[383646692,1757062246395,-433.42318356,0.00013698,2]
[383646693,1757062246404,-178.58483615,0.00013698,2]
[383646694,1757062246413,-480.0,0.00013698,2]
[383646695,1757062246422,-151.0,0.00013698,2]
[383646696,1757062246433,-151.0,0.00013698,2]
[383646697,1757062246444,-23.54389523,0.00013698,2]
[383646699,1757062276544,168.09128024,0.00013598,2]
[383646700,1757062309280,300.0,0.0001356,2]
[383646702,1757062333580,3543.83154806,0.0001356,2]
[383646703,1757062356539,1216.2868795,0.00012891,2]
[383646704,1757062396871,387.05332649,0.00013598,2]
[383646705,1757062507339,168.09128023,0.00013598,2]
[383646707,1757062722820,168.09128023,0.00013598,2]
[383646708,1757062737199,309.64266116,0.00013598,2]
[383646713,1757063033160,35153.39684891,0.00014444,4]
[383646714,1757063077446,247.71412896,0.00013598,2]
[383646716,1757063143220,390.21830847,0.00013287,2]
[383646729,1757063417925,198.17130316,0.00013598,2]
[383646836,1757063438381,-673.11612289,0.00013665,2]
[383646837,1757063438393,-526.88387711,0.00013665,2]
[383646838,1757063438402,-300.0,0.00013666,2]
[383646839,1757063438411,-300.0,0.00013666,2]
[383646840,1757063438421,-300.0,0.00013666,2]
[383646841,1757063438430,-300.0,0.00013666,2]
[383646842,1757063438443,-146.96113116,0.00013666,2]
[383646843,1757063438486,-153.03886884,0.00013666,2]
[383646844,1757063438495,-1200.0,0.00013666,2]
[383646845,1757063438504,-500.0,0.00013667,2]
[383646847,1757063438513,-500.0,0.00013667,2]
[383646848,1757063438522,-500.0,0.00013667,2]
[383646849,1757063438531,-500.0,0.00013667,2]
[383646850,1757063438540,-500.0,0.00013667,2]
[383646851,1757063438553,-500.0,0.00013667,2]
[383646852,1757063438563,-198.17130313,0.00013667,2]
[383646853,1757063438572,-180.07957706,0.00013697,2]
[383646854,1757063438582,-500.0,0.00013697,2]
[383646855,1757063438591,-165.63017631,0.00013697,2]
[383646856,1757063438601,-239.45783768,0.00013697,2]
[383646865,1757063440565,-260.54216232,0.00013697,2]
[383646866,1757063440574,-107.89546956,0.00013697,2]
[383646868,1757063444467,-392.10453044,0.00013697,2]
[383646869,1757063444476,-354.15735234,0.00013697,2]
[383646870,1757063444485,-1771.11593494,0.00013698,2]
[383646918,1757063446446,-2286.71315166,0.00013698,2]
[383646919,1757063446457,-480.0,0.00013698,2]
[383646920,1757063446466,-489.80992069,0.00013698,2]
[383646921,1757063446475,-208.82806065,0.00013698,2]
[383646922,1757063446658,-271.17193935,0.00013698,2]
[383646923,1757063446667,-304.92800288,0.00013698,2]
[383646924,1757063446677,-480.0,0.00013698,2]
[383646925,1757063446687,-489.6346626,0.00013698,2]
[383646926,1757063446697,-460.55779036,0.00013698,2]
[383646927,1757063446707,-480.0,0.00013698,2]
[383646928,1757063446717,-480.0,0.00013698,2]
[383646929,1757063446727,-480.0,0.00013698,2]
[383646930,1757063446736,-480.0,0.00013698,2]
[383646931,1757063446746,-480.0,0.00013698,2]
[383646932,1757063446755,-480.0,0.00013698,2]
[383646933,1757063446764,-480.0,0.00013698,2]